bitfinex/quotes_SOLUSD_20250821
["timestamp","ask_amount","ask_price","bid_price","bid_amount"]
[1755748931295,3.69020307,188.73,188.68,3.69020307]
[1755748931497,4.35020307,188.72,188.67,26.0]
[1755748931904,38.1,188.72,188.67,26.68]
[1755748932099,3.69020307,188.69,188.67,0.68]
[1755748932506,3.69020307,188.69,188.65,26.68]
[1755748932695,3.69020307,188.69,188.64,19.62434207]
[1755748932891,3.69020307,188.69,188.66,0.68]
[1755748933103,38.1,188.72,188.64,15.934139]
[1755748933104,3.69020307,188.67,188.64,15.934139]
[1755748933307,0.66,188.68,188.64,15.934139]
[1755748933515,38.76,188.7,188.64,16.614139]
[1755748933699,3.69020307,188.67,188.64,16.614139]
[1755748935520,3.69020307,188.67,188.65,0.68]
[1755748936904,3.69020307,188.67,188.64,15.934139]
[1755748937104,3.69020307,188.67,188.64,16.614139]
[1755748937418,3.69020307,188.67,188.65,0.68]
[1755748937604,3.69020307,188.67,188.65,16.616678]
[1755748937791,3.69020307,188.67,188.65,15.936678]
[1755748937992,3.69020307,188.67,188.62,29.69020307]
[1755748938209,3.69020307,188.67,188.65,0.68]
[1755748938403,13.65559401,188.72,188.65,0.68]
[1755748938404,0.06,188.72,188.66,0.68]
[1755748938611,38.1,188.71,188.67,3.69020307]
[1755748938818,38.1,188.71,188.68,0.68]
[1755748938996,3.69020307,188.69,188.66,26.68]
[1755748939203,3.69020307,188.69,188.67,15.934139]
[1755748939399,3.69020307,188.68,188.67,15.934139]
[1755748939731,3.69020307,188.68,188.64,0.68]
[1755748940030,3.69020307,188.68,188.65,0.68]
[1755748940242,3.69020307,188.69,188.66,0.68]
[1755748940928,3.69020307,188.69,188.65,15.935832]
[1755748940929,38.16,188.72,188.67,4.37020307]
[1755748941224,41.85020307,188.72,188.68,0.68]
[1755748941417,41.85020307,188.72,188.69,0.68]
[1755748941638,4.35020307,188.71,188.66,0.68]
[1755748942118,3.69020307,188.69,188.65,15.935832]
[1755748942318,4.35020307,188.68,188.65,15.935832]
[1755748942620,38.16,188.72,188.66,0.68]
[1755748942621,3.69020307,188.69,188.66,0.68]
[1755748944221,3.69020307,188.69,188.65,15.935832]
[1755748944529,3.69020307,188.69,188.66,0.7]
[1755748945620,3.69020307,188.7,188.67,0.7]
[1755748945809,3.69020307,188.7,188.66,0.7]
[1755748946209,4.37020307,188.71,188.66,0.7]
[1755748946412,4.37020307,188.71,188.67,0.7]
[1755748946612,3.69020307,188.7,188.67,15.934985]
[1755748946820,3.69020307,188.69,188.65,0.7]
[1755748947005,3.69020307,188.69,188.65,16.634985]
[1755748947206,4.37020307,188.7,188.66,0.7]
[1755748948105,4.37020307,188.7,188.66,16.634985]
[1755748949410,4.37020307,188.7,188.66,15.934985]
[1755748949706,3.69020307,188.7,188.66,15.934985]
[1755748949909,38.16,188.72,188.6,0.73]
[1755748949910,3.69020307,188.67,188.6,0.73]
[1755748950113,3.69020307,188.64,188.61,15.938372]
[1755748950333,3.69020307,188.65,188.61,15.938372]
[1755748950631,4.37020307,188.65,188.61,16.638372]
[1755748952133,3.69020307,188.62,188.6,0.03]
[1755748952325,3.69020307,188.61,188.6,0.03]
[1755748952530,4.37020307,188.61,188.6,0.03]
[1755748954156,18.39228179,188.61,188.6,0.03]
[1755748956325,44.39228179,188.61,188.6,0.03]
[1755748957646,0.14216157,188.6,188.59,0.03]
[1755748957834,82.47228179,188.6,188.59,0.03]
[1755748959129,82.18795865,188.6,188.59,0.03]
[1755748959323,81.50795865,188.6,188.59,0.03]
[1755748959845,55.50795865,188.6,188.59,0.03]
[1755748960535,51.81775558,188.6,188.59,0.03]
[1755748960746,55.50795865,188.6,188.59,0.03]
[1755748963545,56.18795865,188.6,188.59,0.03]
[1755748966640,56.47228179,188.6,188.59,0.03]
[1755748970244,52.78207872,188.6,188.59,0.03]
[1755748970763,56.47228179,188.6,188.59,0.03]
[1755748971664,56.53228179,188.6,188.59,0.03]
[1755748979672,59.30003284,188.6,188.59,0.03]
[1755748980253,26.0,188.57,188.43,79.8]
[1755748980472,3.69020307,188.52,188.47,4.39020307]
[1755748980670,13.59559401,188.54,188.43,79.8]
[1755748980671,38.08,188.51,188.48,3.69020307]
[1755748980872,38.06,188.51,188.49,0.7]
[1755748981057,38.06,188.51,188.49,4.39020307]
[1755748981256,3.69020307,188.54,188.5,3.69020307]
[1755748981569,38.06,188.53,188.51,0.7]
[1755748981973,38.06,188.53,188.51,4.39020307]
[1755748982358,38.06,188.53,188.52,0.7]
[1755748982553,38.06,188.54,188.52,0.7]
[1755748983054,3.69020307,188.57,188.52,4.39020307]
[1755748983386,38.06,188.56,188.53,0.7]
[1755748983684,0.06,188.6,188.55,3.69020307]
[1755748983858,0.06,188.6,188.58,3.69020307]
[1755748984046,0.06,188.6,188.59,3.69020307]
[1755748984253,0.06,188.6,188.59,4.39020307]
[1755748984881,0.06,188.6,188.59,0.7]
[1755748985875,0.06,188.6,188.59,4.39020307]
[1755748989752,0.06,188.6,188.59,9.97703429]
[1755748991558,0.06,188.6,188.59,12.10181229]
[1755748994679,0.06,188.6,188.59,6.79930421]
[1755748995065,0.06,188.6,188.59,86.59930421]
[1755748997083,0.06,188.6,188.59,91.90181229]
[1755748997805,0.06,188.62,188.61,26.0]
[1755748997957,0.06,188.62,188.61,109.77452621]
[1755748998154,0.06,188.64,188.63,0.28432314]
[1755748998373,0.06,188.64,188.63,87.46472928]
[1755748998554,0.06,188.64,188.63,88.16472928]
[1755748998774,0.06,188.67,188.66,39.87991715]
[1755748999090,0.06,188.69,188.66,81.75228179]
[1755748999285,0.06,188.69,188.68,3.97452621]
[1755748999593,0.06,188.69,188.68,9.27450501]
[1755748999796,0.06,188.69,188.68,9.97450501]
[1755749001281,0.06,188.69,188.68,4.67452621]
[1755749002162,0.06,188.69,188.68,30.67452621]
[1755749002873,0.06,188.69,188.68,30.39020307]
[1755749003080,0.06,188.69,188.68,31.81419107]
[1755749003280,0.06,188.69,188.68,32.49419107]
[1755749003591,0.06,188.69,188.68,37.79416987]
[1755749003893,0.06,188.69,188.68,38.07849301]
[1755749004765,0.06,188.69,188.68,117.87849301]
[1755749005189,0.06,188.69,188.68,117.19849301]
[1755749005993,0.06,188.69,188.68,117.87849301]
[1755749008593,0.06,188.69,188.68,131.61624859]
[1755749008764,0.06,188.69,188.68,108.88831114]
[1755749008960,0.06,188.69,188.68,112.57851421]
[1755749009161,0.06,188.69,188.68,117.87849301]
[1755749009779,0.06,188.69,188.68,112.57851421]
[1755749009993,0.06,188.69,188.68,111.89851421]
[1755749011491,0.06,188.69,188.68,108.20831114]
[1755749011792,0.06,188.69,188.68,111.89851421]
[1755749014199,0.06,188.69,188.68,112.57851421]
[1755749014772,0.06,188.69,188.68,117.87849301]
[1755749015298,0.06,188.69,188.68,155.87849301]
[1755749016703,0.06,188.69,188.68,149.89851421]
[1755749016992,0.06,188.69,188.68,155.87849301]
[1755749020119,0.06,188.69,188.68,149.89851421]
[1755749020120,0.78,188.69,188.68,149.89851421]
[1755749020470,0.78,188.69,188.68,2.123988]
[1755749020786,0.78,188.69,188.66,37.98]
[1755749021099,0.78,188.69,188.68,26.0]
[1755749021504,0.06,188.69,188.68,4.65452621]
[1755749021874,0.06,188.69,188.68,8.40472921]
[1755749022705,0.06,188.69,188.68,13.70470801]
[1755749023292,0.06,188.71,188.7,26.0]
[1755749023489,0.06,188.71,188.7,67.95452621]
[1755749023690,0.06,188.71,188.7,165.86248486]
[1755749023999,0.06,188.72,188.71,0.28432314]
[1755749024299,0.06,188.72,188.71,3.97452621]
[1755749024474,0.06,188.72,188.71,4.65452621]
[1755749025182,0.06,188.72,188.71,9.95366245]
[1755749025379,0.06,188.72,188.71,9.27366245]
[1755749025977,0.78,188.72,188.71,6.09795021]
[1755749026301,0.06,188.72,188.71,6.09795021]
[1755749027075,0.06,188.72,188.71,2.123424]
[1755749027076,0.77,188.72,188.71,2.123424]
[1755749027273,0.06,188.72,188.71,3.69020307]
[1755749028009,0.77,188.72,188.7,119.903763]
[1755749028176,0.06,188.72,188.71,3.69020307]
[1755749028903,0.06,188.72,188.71,4.37020307]
[1755749029079,0.77,188.72,188.71,3.69020307]
[1755749029407,0.06,188.72,188.71,3.69020307]
[1755749029782,0.06,188.72,188.71,9.27366245]
[1755749029983,0.06,188.72,188.71,9.95366245]
[1755749033497,0.06,188.72,188.71,13.64386552]
[1755749033698,0.06,188.72,188.71,15.76728952]
[1755749034509,0.06,188.72,188.71,95.56728952]
[1755749035497,0.06,188.75,188.74,26.0]
[1755749035686,0.06,188.75,188.74,81.69228179]
[1755749035888,0.06,188.75,188.74,162.21228179]
[1755749036306,0.06,188.75,188.74,164.33514179]
[1755749036813,0.06,188.77,188.76,0.28432314]
[1755749036992,0.06,188.77,188.76,55.67228179]
[1755749037184,0.06,188.77,188.76,41.93452621]
[1755749037388,0.78,188.77,188.76,41.93452621]
[1755749037589,0.78,188.77,188.76,44.05738721]
[1755749037783,0.78,188.77,188.76,43.77306407]
[1755749038231,0.78,188.77,188.76,5.81306407]
[1755749038527,0.78,188.77,188.76,5.21340908]
[1755749038726,0.78,188.77,188.75,3.69020307]
[1755749038929,0.06,188.77,188.76,67.65020307]
[1755749039208,0.78,188.77,188.76,3.69020307]
[1755749039381,0.06,188.77,188.76,3.69020307]
[1755749039707,0.06,188.77,188.76,4.41020307]
[1755749039887,0.06,188.77,188.76,3.69020307]
[1755749040288,0.06,188.77,188.76,23.81644845]
[1755749040487,0.06,188.78,188.77,0.14216157]
[1755749040719,0.06,188.78,188.77,42.65452621]
[1755749040926,0.06,188.78,188.77,47.95197813]
[1755749041602,0.78,188.78,188.77,41.65020307]
[1755749042126,0.06,188.78,188.77,41.65020307]
[1755749043295,0.78,188.78,188.77,41.65020307]
[1755749044902,0.06,188.78,188.77,41.65020307]
[1755749045495,0.06,188.78,188.77,46.94765499]
[1755749045716,0.06,188.78,188.77,141.48973371]
[1755749045907,0.06,188.78,188.77,143.61236871]
[1755749046712,0.2,188.79,188.78,0.28432314]
[1755749046904,0.06,188.82,188.81,26.28432314]
[1755749047094,0.06,188.82,188.81,77.64105892]
[1755749047298,0.06,188.82,188.81,91.3788145]
[1755749047602,0.78,188.9,188.85,26.0]
[1755749047921,0.92,188.88,188.85,41.65020307]
[1755749048121,0.2,188.88,188.85,41.65020307]
[1755749048425,0.92,188.88,188.85,43.77227507]
[1755749048725,0.92,188.86,188.85,43.77227507]
[1755749049099,0.2,188.86,188.85,43.77227507]
[1755749050899,0.92,188.86,188.85,40.082072]
[1755749051114,0.92,188.86,188.85,43.77227507]
[1755749051509,0.92,188.86,188.85,41.65020307]
[1755749052933,0.92,188.86,188.85,3.69020307]
[1755749053947,0.92,188.86,188.83,28.122297]
[1755749054110,0.2,188.86,188.82,41.63020307]
[1755749054309,0.72,188.85,188.81,63.94]
[1755749054608,0.72,188.84,188.83,29.69020307]
[1755749056029,0.92,188.86,188.83,29.69020307]
[1755749056226,0.92,188.86,188.84,3.69020307]
[1755749056541,0.72,188.85,188.83,29.69020307]
[1755749056828,0.72,188.84,188.83,26.0]
[1755749058213,4.61020307,188.86,188.83,26.0]
[1755749058532,0.72,188.85,188.83,26.0]
[1755749060214,0.2,188.86,188.84,4.41020307]
[1755749060413,0.2,188.86,188.84,0.72]
[1755749060615,0.2,188.86,188.85,3.69020307]
[1755749063038,0.2,188.86,188.85,4.36020307]
[1755749063233,0.2,188.86,188.85,47.87973404]
[1755749063640,0.2,188.86,188.85,50.00158104]
[1755749065735,0.2,188.86,188.85,44.70637321]
[1755749065936,0.2,188.86,188.85,6.76637321]
[1755749066134,0.2,188.86,188.85,44.70637321]
[1755749067138,0.2,188.86,188.85,28.121847]
[1755749067728,0.91,188.86,188.85,26.0]
[1755749067940,0.2,188.86,188.85,26.0]
[1755749068141,0.2,188.86,188.84,3.690203]
[1755749068321,0.91,188.86,188.85,26.0]
[1755749068928,0.2,188.86,188.85,26.0]
[1755749069324,0.91,188.86,188.85,26.0]
[1755749069629,0.2,188.86,188.85,26.0]
[1755749070139,0.91,188.86,188.85,26.0]
[1755749071044,4.60020307,188.86,188.82,79.8]
[1755749071242,3.69020307,188.84,188.82,79.8]
[1755749071565,0.71,188.83,188.82,79.8]
[1755749071922,0.71,188.83,188.82,79.83]
[1755749072336,3.69020307,188.85,188.82,79.83]
[1755749072565,4.40020307,188.85,188.82,79.83]
[1755749073614,0.71,188.84,188.82,79.83]
[1755749074637,3.69020307,188.85,188.82,79.83]
[1755749074832,4.40020307,188.85,188.82,79.83]
[1755749075763,4.40020307,188.85,188.82,0.03]
[1755749075964,0.71,188.85,188.82,0.03]
[1755749076149,4.40020307,188.85,188.82,0.03]
[1755749076555,0.71,188.84,188.83,26.0]
[1755749076761,4.40020307,188.84,188.83,26.0]
[1755749076961,0.71,188.84,188.82,0.03]
[1755749077138,0.71,188.83,188.82,0.03]
[1755749077568,8.09040614,188.83,188.82,0.03]
[1755749077789,4.40020307,188.83,188.82,0.03]
[1755749078950,8.09040614,188.83,188.82,0.03]
[1755749079150,4.40020307,188.83,188.82,0.03]
[1755749079866,0.71,188.83,188.82,0.03]
[1755749080062,0.71,188.85,188.82,0.03]
[1755749080268,3.69020307,188.83,188.82,0.03]
[1755749082069,0.71,188.83,188.82,0.03]
[1755749082269,4.40020307,188.83,188.82,0.03]
[1755749082977,3.69020307,188.83,188.82,0.03]
[1755749084695,3.89020307,188.86,188.82,0.7]
[1755749084987,3.89020307,188.86,188.82,26.7]
[1755749085160,3.89020307,188.86,188.83,0.67]
[1755749085406,3.69020307,188.85,188.82,26.03]
[1755749086267,0.2,188.86,188.85,26.0]
[1755749086466,0.2,188.86,188.85,43.71228179]
[1755749086654,0.2,188.88,188.86,0.28432314]
[1755749086858,0.2,188.88,188.87,56.05795865]
[1755749087055,0.2,188.88,188.87,61.6369289]
[1755749087673,0.2,188.88,188.87,65.82893701]
[1755749088155,0.2,188.88,188.87,61.6369289]
[1755749088364,0.2,188.88,188.87,25.7983259]
[1755749088585,0.2,188.88,188.87,63.7583259]
[1755749090290,0.2,188.88,188.87,44.72592321]
[1755749090797,0.2,188.88,188.87,40.061397]
[1755749090959,0.2,188.88,188.87,66.061397]
[1755749092865,0.2,188.88,188.87,31.81160007]
[1755749093074,0.2,188.88,188.87,69.77160007]
[1755749094579,0.2,188.88,188.87,70.48160007]
[1755749095474,0.2,188.88,188.87,69.77160007]
[1755749095675,0.2,188.88,188.87,31.81160007]
[1755749095877,0.2,188.88,188.87,69.73160007]
[1755749097691,0.87,188.88,188.87,28.121397]
[1755749097859,0.87,188.88,188.87,66.041397]
[1755749099094,0.87,188.88,188.87,28.121397]
[1755749100438,0.87,188.88,188.82,5.3258421]
[1755749100439,4.56020307,188.88,188.82,0.03]
[1755749100558,3.69020307,188.83,188.82,0.03]
[1755749100863,0.58,188.87,188.82,3.780204]
[1755749101068,3.69020307,188.86,188.82,0.03]
[1755749101269,0.2,188.88,188.83,4.40020307]
[1755749101482,0.2,188.88,188.84,4.40020307]
[1755749101883,0.2,188.88,188.85,0.71]
[1755749102187,0.2,188.88,188.85,4.40020307]
[1755749102860,0.2,188.88,188.85,0.71]
[1755749103166,0.2,188.88,188.84,3.69020307]
[1755749103370,0.2,188.88,188.85,4.330203]
[1755749103569,0.2,188.88,188.82,0.03]
[1755749103570,3.69020307,188.86,188.82,0.03]
[1755749103774,4.27020307,188.85,188.82,0.03]
[1755749103972,0.2,188.88,188.82,7.41040607]
[1755749104198,3.89020307,188.88,188.83,4.40020307]
[1755749104382,3.89020307,188.88,188.83,3.69020307]
[1755749104587,3.89020307,188.88,188.84,0.71]
[1755749104786,0.2,188.88,188.84,0.71]
[1755749104987,3.89020307,188.88,188.84,0.71]
[1755749105477,0.2,188.88,188.85,0.71]
[1755749105684,0.2,188.88,188.86,0.71]
[1755749108595,0.2,188.88,188.87,0.71]
[1755749110069,0.2,188.88,188.86,3.69020307]
[1755749110291,0.2,188.88,188.86,4.40020307]
[1755749111073,0.2,188.88,188.87,3.890203]
[1755749111277,0.06,188.9,188.89,26.0]
[1755749111479,0.06,188.9,188.89,29.97452621]
[1755749111684,0.06,188.9,188.89,30.68452621]
[1755749111879,0.06,188.9,188.89,32.80603521]
[1755749115927,0.06,188.9,188.89,70.78603521]
[1755749116229,0.06,188.9,188.89,76.08012171]
[1755749116623,0.06,188.9,188.89,155.88012171]
[1755749118609,0.06,188.9,188.89,169.61787729]
[1755749121832,0.06,188.9,188.89,173.30808036]
[1755749122515,0.06,188.9,188.89,169.61787729]
[1755749127133,0.06,188.9,188.89,81.921509]
[1755749127333,0.06,188.9,188.89,123.53171207]
[1755749127533,0.06,188.9,188.89,120.12583214]
[1755749127721,0.06,188.9,188.89,123.81603521]
[1755749130435,0.06,188.9,188.89,107.921509]
[1755749130436,0.72,188.9,188.89,107.921509]
[1755749130682,4.41020307,188.9,188.89,2.121509]
[1755749131150,4.41020307,188.9,188.89,28.121509]
[1755749131523,4.41020307,188.9,188.88,0.03]
[1755749131857,4.35020307,188.89,188.88,0.03]
[1755749132027,18.08795865,188.89,188.88,0.03]
[1755749133429,40.02207872,188.87,188.86,0.03]
[1755749133658,13.73775558,188.86,188.84,0.03]
[1755749133957,17.42795865,188.85,188.84,0.03]
[1755749134123,18.08795865,188.85,188.84,0.03]
[1755749134829,4.35020307,188.85,188.84,0.03]
[1755749135027,0.66,188.85,188.84,0.03]
[1755749135348,3.69020307,188.88,188.84,0.03]
[1755749135525,0.66,188.87,188.84,0.03]
[1755749136765,3.69020307,188.85,188.84,0.03]
[1755749136929,4.35020307,188.85,188.84,0.03]
[1755749137347,0.66,188.85,188.84,0.03]
[1755749137671,3.69020307,188.86,188.84,0.03]
[1755749137951,0.72,188.9,188.85,3.69020307]
[1755749138164,0.72,188.9,188.86,3.69020307]
[1755749138856,0.06,188.9,188.89,3.69020307]
[1755749139062,0.06,188.9,188.85,0.95432314]
[1755749139265,0.06,188.9,188.88,3.69020307]
[1755749139453,0.06,188.9,188.87,3.69020307]
[1755749139834,0.06,188.9,188.88,3.69020307]
[1755749140066,0.06,188.9,188.84,105.83]
[1755749140370,0.72,188.9,188.86,3.69020307]
[1755749140678,3.69020307,188.89,188.84,105.83]
[1755749140840,0.06,188.9,188.84,0.03]
[1755749140841,3.69020307,188.85,188.84,0.03]
[1755749141164,4.35020307,188.85,188.84,0.03]
[1755749141463,3.69020307,188.85,188.84,0.03]
[1755749141664,3.69020307,188.87,188.84,0.03]
[1755749141862,3.69020307,188.88,188.84,0.7]
[1755749142056,4.35020307,188.87,188.84,0.03]
[1755749142266,3.69020307,188.86,188.84,0.03]
[1755749142653,3.69020307,188.86,188.85,4.350203]
[1755749142868,0.66,188.87,188.85,4.350203]
[1755749143056,4.35020307,188.86,188.85,4.350203]
[1755749143244,4.35020307,188.86,188.84,0.03]
[1755749143449,3.69020307,188.85,188.84,0.03]
[1755749143848,3.69020307,188.85,188.84,3.720203]
[1755749144363,6.00871368,188.85,188.84,3.720203]
[1755749144852,0.66,188.85,188.84,3.720203]
[1755749145054,6.00871368,188.85,188.84,3.720203]
[1755749145457,20.40646926,188.85,188.84,0.03]
[1755749149159,46.54863083,188.85,188.84,0.03]
[1755749149572,46.6907924,188.85,188.84,0.03]
[1755749150386,40.02207872,188.83,188.82,0.03]
[1755749150690,46.0307924,188.83,188.82,0.03]
[1755749150985,46.6907924,188.83,188.82,0.03]
[1755749151569,39.87991715,188.81,188.8,0.03]
[1755749151761,57.9707924,188.81,188.8,0.03]
[1755749151961,58.6307924,188.81,188.8,0.03]
[1755749160298,19.60430769,188.81,188.8,0.03]
[1755749160502,57.54430769,188.81,188.8,0.03]
[1755749160715,51.96207872,188.81,188.8,0.03]
[1755749161091,57.9707924,188.81,188.8,0.03]
[1755749162530,58.6507924,188.81,188.8,0.03]
[1755749163718,39.59559401,188.79,188.78,0.03]
[1755749163923,0.42648471,188.77,188.76,0.03]
[1755749164101,39.87991715,188.73,188.72,0.03]
[1755749164322,85.88872215,188.73,188.72,0.03]
[1755749164502,86.03088372,188.73,188.72,0.03]
[1755749164704,0.14216157,188.72,188.69,0.2]
[1755749164903,17.57431965,188.7,188.69,0.2]
[1755749169026,17.57431965,188.7,188.69,0.9]
[1755749169322,0.96432314,188.78,188.69,0.9]
[1755749169526,13.73775558,188.71,188.69,0.2]
[1755749169722,17.28999651,188.71,188.7,0.7]
[1755749169923,55.39215808,188.71,188.7,0.7]
[1755749173612,51.69775558,188.71,188.7,0.7]
[1755749173824,55.39215808,188.71,188.7,0.7]
[1755749174329,55.39215808,188.71,188.69,0.2]
[1755749174529,55.39215808,188.71,188.69,0.9]
[1755749174710,3.6944025,188.7,188.69,0.9]
[1755749175223,3.6944025,188.7,188.69,0.2]
[1755749175613,17.43215808,188.7,188.69,0.2]
[1755749176341,17.43215808,188.7,188.69,0.9]
[1755749176543,17.43215808,188.7,188.69,0.2]
[1755749177831,18.39648122,188.7,188.69,0.2]
[1755749178332,17.43215808,188.7,188.69,0.2]
[1755749178840,55.39215808,188.7,188.69,0.2]
[1755749179816,56.35648122,188.7,188.69,0.2]
[1755749181235,55.67648122,188.7,188.69,0.2]
[1755749181442,55.87648122,188.7,188.69,0.2]
[1755749182642,55.67648122,188.7,188.69,0.2]
[1755749184431,55.87648122,188.7,188.69,0.2]
[1755749185845,43.71648122,188.68,188.67,0.03]
[1755749186037,81.67648122,188.68,188.67,0.03]
[1755749186229,82.38648122,188.68,188.67,0.03]
[1755749187446,0.28432314,188.66,188.65,0.03]
[1755749187649,41.93872564,188.66,188.65,0.03]
[1755749189046,0.14216157,188.64,188.63,0.03]
[1755749189252,85.08656058,188.64,188.63,0.03]
[1755749189628,85.79656058,188.64,188.63,0.03]
[1755749190046,86.08088372,188.64,188.63,0.03]
[1755749191641,85.37088372,188.64,188.63,0.03]
[1755749198663,59.37088372,188.64,188.63,0.03]
[1755749199232,17.71648122,188.64,188.63,0.69]
[1755749199436,55.24999651,188.64,188.63,0.69]
[1755749200242,55.39215808,188.64,188.63,0.69]
[1755749200466,37.96,188.64,188.63,0.69]
[1755749201762,13.79775558,188.72,188.63,4.3844025]
[1755749202074,17.28999651,188.67,188.64,0.66]
[1755749202379,3.6944025,188.65,188.63,0.03]
[1755749202538,55.24999651,188.64,188.63,0.03]
[1755749202739,55.39215808,188.64,188.63,0.03]
[1755749203138,55.39215808,188.64,188.63,0.69]
[1755749204356,0.34432314,188.67,188.63,0.69]
[1755749204560,3.6944025,188.64,188.63,0.69]
[1755749204865,41.6544025,188.64,188.63,0.69]
[1755749205066,55.39215808,188.64,188.63,0.03]
[1755749205262,51.98207872,188.64,188.63,0.03]
[1755749205444,55.67648122,188.64,188.63,0.03]
[1755749205851,59.37088372,188.64,188.63,0.03]
[1755749206074,51.98207872,188.64,188.63,0.03]
[1755749206371,59.37088372,188.64,188.63,0.03]
[1755749208147,60.08088372,188.64,188.63,0.03]
[1755749208474,14.02207872,188.63,188.61,0.03]
[1755749208673,17.43215808,188.6,188.59,0.03]
[1755749208882,55.39215808,188.6,188.59,0.03]
[1755749209464,55.39215808,188.6,188.59,0.69]
[1755749209465,17.71648122,188.6,188.59,0.69]
[1755749209666,55.39215808,188.6,188.59,0.69]
[1755749210070,41.6544025,188.6,188.59,0.69]
[1755749210747,55.24999651,188.6,188.59,0.69]
[1755749211154,55.39215808,188.6,188.59,0.69]
[1755749211778,55.39215808,188.6,188.59,0.03]
[1755749213149,56.34648122,188.6,188.59,0.03]
[1755749213551,55.67648122,188.6,188.59,0.03]
[1755749216892,55.67648122,188.6,188.59,0.7]
[1755749217184,55.67648122,188.6,188.59,0.03]
[1755749218159,55.67648122,188.6,188.59,0.7]
[1755749218360,55.24999651,188.6,188.59,0.7]
[1755749218687,0.73,188.67,188.59,0.7]
[1755749218865,13.59559401,188.6,188.59,0.7]
[1755749219061,51.55559401,188.6,188.56,3.6944025]
[1755749219778,4.79088721,188.59,188.5,29.81387916]
[1755749219967,13.59559401,188.56,188.51,3.6944025]
[1755749220172,37.96,188.55,188.51,3.6944025]
[1755749220575,37.96,188.55,188.5,29.81387966]
[1755749220981,13.59559401,188.52,188.5,0.11947716]
[1755749221179,37.96,188.51,188.5,0.78947716]
[1755749221483,37.96,188.51,188.5,0.11947716]
[1755749221893,37.96,188.51,188.5,0.78947716]
[1755749223186,37.96,188.52,188.5,0.78947716]
[1755749223590,37.96,188.52,188.51,0.67]
[1755749224488,39.73775558,188.51,188.5,0.11947716]
[1755749224697,46.43790226,188.51,188.5,0.11947716]
[1755749225591,45.76790226,188.51,188.5,0.11947716]
[1755749225774,46.43790226,188.51,188.5,0.11947716]
[1755749226089,45.76790226,188.51,188.5,0.11947716]
[1755749227471,46.43790226,188.51,188.5,0.11947716]
[1755749227668,45.76790226,188.51,188.5,0.11947716]
[1755749227982,37.96,188.51,188.5,0.78947716]
[1755749229398,26.0,188.56,188.5,0.78947716]
[1755749229399,39.59559401,188.57,188.5,0.78947716]
[1755749229597,6.03014668,188.53,188.5,0.11947716]
[1755749229793,6.03014668,188.51,188.5,0.11947716]
[1755749229984,43.99014668,188.51,188.5,0.11947716]
[1755749230179,57.72790226,188.51,188.5,0.11947716]
[1755749230500,51.69775558,188.51,188.5,0.78947716]
[1755749230687,57.72790226,188.51,188.5,0.11947716]
[1755749231994,51.69775558,188.51,188.5,0.11947716]
[1755749232192,57.72790226,188.51,188.5,0.11947716]
[1755749232697,37.96,188.51,188.5,0.78947716]
[1755749233198,43.99014668,188.51,188.5,0.11947716]
[1755749233901,43.99014668,188.51,188.5,0.78947716]
[1755749234098,37.96,188.51,188.5,0.11947716]
[1755749234478,37.96,188.51,188.5,0.78947716]
[1755749234679,37.96,188.51,188.5,0.11947716]
[1755749236297,37.96,188.51,188.5,0.78947716]